[Event "Late-Titled-Tuesday-Blitz-August-29-2023"]
[Site "Chess.com"]
[Date "2023.08.29"]
[Round "3"]
[White "XiaoKangZhong"]
[Black "CarrotsandPizza"]
[Result "1-0"]
[WhiteElo "2552"]
[BlackElo "2321"]
[TimeControl "180+1"]
[EndTime "14:28:28 PDT"]
[Termination "XiaoKangZhong won on time"]

1. e4 {[%clk 0:02:56.7]} 1... c5 {[%clk 0:02:10.9]} 2. Nf3 {[%clk 0:02:46.1]}
2... Qb6 {[%clk 0:02:11]} 3. c3 {[%clk 0:02:36.6]} 3... e6 {[%clk 0:02:10]} 4.
d4 {[%clk 0:02:35.8]} 4... d5 {[%clk 0:02:10.5]} 5. exd5 {[%clk 0:02:27.9]} 5...
exd5 {[%clk 0:02:11.4]} 6. Bd3 {[%clk 0:02:22.9]} 6... c4 {[%clk 0:02:11.3]} 7.
Bc2 {[%clk 0:02:21.5]} 7... Bd6 {[%clk 0:02:11.9]} 8. O-O {[%clk 0:02:20.6]}
8... Ne7 {[%clk 0:02:12.5]} 9. Re1 {[%clk 0:02:16.6]} 9... O-O {[%clk
0:02:12.5]} 10. b3 {[%clk 0:02:14.2]} 10... cxb3 {[%clk 0:02:12.2]} 11. axb3
{[%clk 0:02:13.6]} 11... Nbc6 {[%clk 0:02:12.9]} 12. Nh4 {[%clk 0:02:09]} 12...
Bd7 {[%clk 0:02:09.2]} 13. Qd3 {[%clk 0:01:39.3]} 13... Ng6 {[%clk 0:02:00.9]}
14. Nf5 {[%clk 0:01:35.5]} 14... Bc7 {[%clk 0:01:57.1]} 15. h4 {[%clk
0:01:29.9]} 15... Rfe8 {[%clk 0:01:57.4]} 16. Be3 {[%clk 0:01:28.3]} 16... Nce7
{[%clk 0:01:43]} 17. Nxe7+ {[%clk 0:01:19.9]} 17... Rxe7 {[%clk 0:01:43.4]} 18.
h5 {[%clk 0:01:15.8]} 18... Nf8 {[%clk 0:01:42.9]} 19. Nd2 {[%clk 0:01:16.3]}
19... Rae8 {[%clk 0:01:41.9]} 20. Nf3 {[%clk 0:01:15.8]} 20... Qf6 {[%clk
0:01:31.8]} 21. Re2 {[%clk 0:01:03.2]} 21... Qb6 {[%clk 0:01:04.8]} 22. Rae1
{[%clk 0:00:55.3]} 22... Bg4 {[%clk 0:01:03.1]} 23. Bg5 {[%clk 0:00:53.3]} 23...
Rxe2 {[%clk 0:00:55.1]} 24. Rxe2 {[%clk 0:00:53.2]} 24... Rxe2 {[%clk 0:00:55]}
25. Qxe2 {[%clk 0:00:54.1]} 25... Bxh5 {[%clk 0:00:53.4]} 26. Qe8 {[%clk
0:00:47.2]} 26... f6 {[%clk 0:00:47]} 27. Qxh5 {[%clk 0:00:40.5]} 27... g6
{[%clk 0:00:38.7]} 28. Qg4 {[%clk 0:00:27.1]} 28... fxg5 {[%clk 0:00:39]} 29.
Qxg5 {[%clk 0:00:23.6]} 29... Qa5 {[%clk 0:00:37.1]} 30. g3 {[%clk 0:00:14.1]}
30... Qb5 {[%clk 0:00:16.1]} 31. Kg2 {[%clk 0:00:13.2]} 31... Qd7 {[%clk
0:00:16.2]} 32. Ne5 {[%clk 0:00:09.8]} 32... Qe6 {[%clk 0:00:15.5]} 33. Bd3
{[%clk 0:00:07.4]} 33... a6 {[%clk 0:00:14.6]} 34. c4 {[%clk 0:00:07.3]} 34...
Bd6 {[%clk 0:00:12.9]} 35. cxd5 {[%clk 0:00:07.3]} 35... Qe7 {[%clk 0:00:11.5]}
36. Qf4 {[%clk 0:00:04.9]} 36... Nd7 {[%clk 0:00:11.1]} 37. Qe4 {[%clk 0:00:03]}
37... Nxe5 {[%clk 0:00:10.7]} 38. dxe5 {[%clk 0:00:03.1]} 38... Qxe5 {[%clk
0:00:11.2]} 39. Qc4 {[%clk 0:00:03]} 39... Kg7 {[%clk 0:00:07.8]} 40. Qc8 {[%clk
0:00:02.3]} 40... Qxd5+ {[%clk 0:00:08.2]} 41. Kh2 {[%clk 0:00:02.7]} 41... Qf7
{[%clk 0:00:08.3]} 42. Qc4 {[%clk 0:00:02.4]} 42... Qe7 {[%clk 0:00:05.9]} 43.
Qd5 {[%clk 0:00:01.9]} 43... Qe5 {[%clk 0:00:05.2]} 44. Qxb7+ {[%clk 0:00:01.7]}
44... Kh6 {[%clk 0:00:05.7]} 45. Bc4 {[%clk 0:00:01.5]} 45... Bc5 {[%clk
0:00:05.6]} 46. Kg2 {[%clk 0:00:01.9]} 46... Qf5 {[%clk 0:00:05]} 47. Qd5 {[%clk
0:00:02]} 47... Qxf2+ {[%clk 0:00:04.8]} 48. Kh3 {[%clk 0:00:02.8]} 48... Qg1
{[%clk 0:00:02.1]} 49. Qd2+ {[%clk 0:00:03.1]} 1-0

[Event "Late-Titled-Tuesday-Blitz-August-29-2023"]
[Site "Chess.com"]
[Date "2023.08.29"]
[Round "3"]
[White "MusicCityMaster"]
[Black "Grebeniuk-S"]
[Result "1-0"]
[WhiteElo "2455"]
[BlackElo "2610"]
[TimeControl "180+1"]
[EndTime "14:28:30 PDT"]
[Termination "MusicCityMaster won by checkmate"]

1. e4 {[%clk 0:03:00.9]} 1... d5 {[%clk 0:02:57.9]} 2. exd5 {[%clk 0:02:59.7]}
2... Qxd5 {[%clk 0:02:58.8]} 3. Nc3 {[%clk 0:02:59.8]} 3... Qa5 {[%clk
0:02:59.5]} 4. d4 {[%clk 0:03:00.2]} 4... Nf6 {[%clk 0:03:00.1]} 5. Nf3 {[%clk
0:03:00.1]} 5... Bg4 {[%clk 0:03:00.8]} 6. h3 {[%clk 0:03:00.4]} 6... Bh5 {[%clk
0:03:01.5]} 7. g4 {[%clk 0:03:00.6]} 7... Bg6 {[%clk 0:03:02.3]} 8. Ne5 {[%clk
0:03:00.9]} 8... e6 {[%clk 0:03:03.1]} 9. h4 {[%clk 0:03:01]} 9... Bb4 {[%clk
0:03:02.5]} 10. Bd2 {[%clk 0:02:59.1]} 10... Nbd7 {[%clk 0:03:02.5]} 11. Nc4
{[%clk 0:02:49.2]} 11... Qa6 {[%clk 0:02:57]} 12. h5 {[%clk 0:02:19.5]} 12...
Bxc3 {[%clk 0:02:55.2]} 13. Bxc3 {[%clk 0:02:17.2]} 13... Be4 {[%clk 0:02:54.5]}
14. Rh3 {[%clk 0:02:11.9]} 14... Bd5 {[%clk 0:02:17.2]} 15. Ne5 {[%clk
0:02:02.2]} 15... Qd6 {[%clk 0:02:16.4]} 16. Bd3 {[%clk 0:01:38.5]} 16... Ne4
{[%clk 0:02:05.5]} 17. Bxe4 {[%clk 0:01:35.5]} 17... Bxe4 {[%clk 0:02:06.4]} 18.
Qe2 {[%clk 0:01:31.5]} 18... Bd5 {[%clk 0:02:01.3]} 19. O-O-O {[%clk 0:01:27]}
19... Nxe5 {[%clk 0:01:58.9]} 20. dxe5 {[%clk 0:01:26.6]} 20... Qc6 {[%clk
0:01:58.7]} 21. Kb1 {[%clk 0:01:11.6]} 21... O-O-O {[%clk 0:01:58]} 22. h6
{[%clk 0:00:56.6]} 22... gxh6 {[%clk 0:01:45.5]} 23. Rhd3 {[%clk 0:00:48.3]}
23... Rhg8 {[%clk 0:01:23]} 24. Qe3 {[%clk 0:00:45.9]} 24... Rxg4 {[%clk
0:01:15.2]} 25. b3 {[%clk 0:00:43.9]} 25... b6 {[%clk 0:01:07.7]} 26. Qxh6
{[%clk 0:00:41.9]} 26... Rdg8 {[%clk 0:01:05.1]} 27. Qxh7 {[%clk 0:00:40.5]}
27... Rg1 {[%clk 0:01:04.9]} 28. Qxf7 {[%clk 0:00:36.6]} 28... Rxd1+ {[%clk
0:00:53.9]} 29. Rxd1 {[%clk 0:00:37.5]} 29... Rg2 {[%clk 0:00:51.3]} 30. Kb2
{[%clk 0:00:32.4]} 30... a5 {[%clk 0:00:45.8]} 31. Rd3 {[%clk 0:00:30.1]} 31...
Kb7 {[%clk 0:00:45]} 32. Bd4 {[%clk 0:00:28.3]} 32... Qb5 {[%clk 0:00:24.9]} 33.
Rc3 {[%clk 0:00:26.9]} 33... Bc6 {[%clk 0:00:25]} 34. Qxe6 {[%clk 0:00:20.7]}
34... a4 {[%clk 0:00:24.2]} 35. Qc4 {[%clk 0:00:17.7]} 35... Qd5 {[%clk
0:00:16.7]} 36. Qxd5 {[%clk 0:00:17.5]} 36... Bxd5 {[%clk 0:00:17.6]} 37. bxa4
{[%clk 0:00:17.3]} 37... c5 {[%clk 0:00:17.7]} 38. Be3 {[%clk 0:00:16.9]} 38...
Kc6 {[%clk 0:00:18.1]} 39. f4 {[%clk 0:00:17.7]} 39... Re2 {[%clk 0:00:17.4]}
40. Rd3 {[%clk 0:00:17.6]} 40... c4 {[%clk 0:00:15.7]} 41. Rc3 {[%clk 0:00:18]}
41... Be4 {[%clk 0:00:15.6]} 42. Ka3 {[%clk 0:00:16.9]} 42... Kd5 {[%clk
0:00:14.6]} 43. Kb4 {[%clk 0:00:17.8]} 43... Rxc2 {[%clk 0:00:08.4]} 44. Rxc2
{[%clk 0:00:18.1]} 44... Bxc2 {[%clk 0:00:09.3]} 45. Bxb6 {[%clk 0:00:18.3]}
45... Bf5 {[%clk 0:00:07.5]} 46. Kc3 {[%clk 0:00:18.3]} 46... Bd7 {[%clk
0:00:07.7]} 47. a5 {[%clk 0:00:19.2]} 47... Bb5 {[%clk 0:00:07.9]} 48. Bd4
{[%clk 0:00:18.2]} 48... Ba6 {[%clk 0:00:08.4]} 49. f5 {[%clk 0:00:18.6]} 49...
Bc8 {[%clk 0:00:08.8]} 50. f6 {[%clk 0:00:18.8]} 50... Be6 {[%clk 0:00:09.3]}
51. a6 {[%clk 0:00:19]} 51... Kc6 {[%clk 0:00:10]} 52. a7 {[%clk 0:00:19.4]}
52... Kb7 {[%clk 0:00:10.7]} 53. Kb4 {[%clk 0:00:19.8]} 53... Bf7 {[%clk
0:00:09.8]} 54. a4 {[%clk 0:00:20.2]} 54... Be6 {[%clk 0:00:10.3]} 55. Kc3
{[%clk 0:00:20.9]} 55... Bf7 {[%clk 0:00:10.9]} 56. a5 {[%clk 0:00:21.7]} 56...
Ka8 {[%clk 0:00:11]} 57. a6 {[%clk 0:00:22.6]} 57... Be6 {[%clk 0:00:11.4]} 58.
Kb4 {[%clk 0:00:23.1]} 58... Bd5 {[%clk 0:00:10.8]} 59. Kc5 {[%clk 0:00:23.6]}
59... Be6 {[%clk 0:00:08.8]} 60. Bc3 {[%clk 0:00:23.8]} 60... Bf7 {[%clk
0:00:09.1]} 61. Kd6 {[%clk 0:00:24.6]} 61... Kxa7 {[%clk 0:00:09.1]} 62. e6
{[%clk 0:00:24.6]} 62... Bxe6 {[%clk 0:00:08.5]} 63. Kxe6 {[%clk 0:00:25.2]}
63... Kxa6 {[%clk 0:00:09.4]} 64. f7 {[%clk 0:00:25.8]} 64... Kb5 {[%clk
0:00:10.3]} 65. f8=Q {[%clk 0:00:26.2]} 65... Ka4 {[%clk 0:00:11.2]} 66. Qb4#
{[%clk 0:00:26.5]} 1-0

[Event "Late-Titled-Tuesday-Blitz-August-29-2023"]
[Site "Chess.com"]
[Date "2023.08.29"]
[Round "3"]
[White "wild3000"]
[Black "KrokerGuy"]
[Result "0-1"]
[WhiteElo "2316"]
[BlackElo "2493"]
[TimeControl "180+1"]
[EndTime "14:28:35 PDT"]
[Termination "KrokerGuy won by resignation"]

1. d4 {[%clk 0:02:29.5]} 1... d5 {[%clk 0:02:59]} 2. g3 {[%clk 0:02:29.7]} 2...
Nf6 {[%clk 0:02:59]} 3. Bg2 {[%clk 0:02:30.3]} 3... c5 {[%clk 0:02:56.8]} 4. Nf3
{[%clk 0:02:30.4]} 4... cxd4 {[%clk 0:02:57.5]} 5. Nxd4 {[%clk 0:02:30.6]} 5...
e5 {[%clk 0:02:57.6]} 6. Nb3 {[%clk 0:02:30.1]} 6... Nc6 {[%clk 0:02:56.3]} 7.
O-O {[%clk 0:02:30.2]} 7... Be6 {[%clk 0:02:56.7]} 8. Nc3 {[%clk 0:02:29.4]}
8... Be7 {[%clk 0:02:53.5]} 9. Bg5 {[%clk 0:02:27.2]} 9... d4 {[%clk 0:02:43.2]}
10. Nb1 {[%clk 0:02:15.3]} 10... O-O {[%clk 0:02:41.5]} 11. N1d2 {[%clk
0:02:13.6]} 11... Bd5 {[%clk 0:02:38.3]} 12. Bxf6 {[%clk 0:02:07.4]} 12... Bxf6
{[%clk 0:02:34.9]} 13. Bxd5 {[%clk 0:02:06]} 13... Qxd5 {[%clk 0:02:35.8]} 14.
f3 {[%clk 0:01:55]} 14... Bg5 {[%clk 0:02:30.9]} 15. Kg2 {[%clk 0:01:53.2]}
15... f5 {[%clk 0:02:27.7]} 16. c4 {[%clk 0:01:42.9]} 16... dxc3 {[%clk
0:02:26.2]} 17. bxc3 {[%clk 0:01:42]} 17... Rad8 {[%clk 0:02:21.4]} 18. c4
{[%clk 0:01:32.8]} 18... Qd6 {[%clk 0:02:07.6]} 19. Qc2 {[%clk 0:01:20.8]} 19...
Nd4 {[%clk 0:00:47.4]} 20. Nxd4 {[%clk 0:01:17.5]} 20... Qxd4 {[%clk 0:00:48.3]}
21. Nb3 {[%clk 0:01:17.1]} 21... Qe3 {[%clk 0:00:46.7]} 22. Rad1 {[%clk
0:01:14.7]} 22... e4 {[%clk 0:00:36.9]} 23. f4 {[%clk 0:01:14]} 23... Bf6 {[%clk
0:00:34.2]} 24. Rxd8 {[%clk 0:01:11.7]} 24... Rxd8 {[%clk 0:00:35.1]} 25. Rd1
{[%clk 0:01:10.3]} 25... Qb6 {[%clk 0:00:27.4]} 26. c5 {[%clk 0:01:07.8]} 26...
Qe6 {[%clk 0:00:21.4]} 27. Rxd8+ {[%clk 0:01:04.2]} 27... Bxd8 {[%clk
0:00:22.3]} 28. Nd4 {[%clk 0:00:58.1]} 28... Qd5 {[%clk 0:00:20.7]} 29. e3
{[%clk 0:00:55.1]} 29... Bf6 {[%clk 0:00:18.8]} 30. Qb3 {[%clk 0:00:36.6]} 30...
Qxb3 {[%clk 0:00:17.7]} 31. Nxb3 {[%clk 0:00:31.3]} 31... Kf7 {[%clk 0:00:13.9]}
32. Na5 {[%clk 0:00:27.9]} 32... b6 {[%clk 0:00:13.9]} 33. cxb6 {[%clk
0:00:19.7]} 33... axb6 {[%clk 0:00:14.8]} 34. Nc4 {[%clk 0:00:20.4]} 34... Bd8
{[%clk 0:00:14.5]} 35. h3 {[%clk 0:00:18.7]} 35... Ke6 {[%clk 0:00:10.8]} 36. g4
{[%clk 0:00:18.7]} 36... g6 {[%clk 0:00:11.3]} 37. Kf2 {[%clk 0:00:18.3]} 37...
Kd5 {[%clk 0:00:10.6]} 38. Nd2 {[%clk 0:00:17.7]} 38... Kc5 {[%clk 0:00:07.8]}
39. g5 {[%clk 0:00:17.5]} 39... Kb4 {[%clk 0:00:07.6]} 40. Nb1 {[%clk
0:00:15.6]} 40... Kc4 {[%clk 0:00:04.2]} 41. Ke2 {[%clk 0:00:15.6]} 41... b5
{[%clk 0:00:04.2]} 42. Kd2 {[%clk 0:00:12.6]} 42... Ba5+ {[%clk 0:00:04.6]} 43.
Kc2 {[%clk 0:00:12.8]} 43... Bb4 {[%clk 0:00:03.6]} 44. Nd2+ {[%clk 0:00:08.4]}
44... Bxd2 {[%clk 0:00:02.5]} 45. Kxd2 {[%clk 0:00:09.3]} 45... Kb4 {[%clk
0:00:03.3]} 46. Kc2 {[%clk 0:00:09.7]} 46... Ka3 {[%clk 0:00:03.8]} 47. Kb1
{[%clk 0:00:10.1]} 47... b4 {[%clk 0:00:04.3]} 48. h4 {[%clk 0:00:09.6]} 48...
b3 {[%clk 0:00:04.4]} 49. axb3 {[%clk 0:00:10]} 49... Kxb3 {[%clk 0:00:05.3]}
50. Kc1 {[%clk 0:00:10.9]} 50... Kc3 {[%clk 0:00:05.8]} 51. Kd1 {[%clk
0:00:11.3]} 51... Kd3 {[%clk 0:00:06.5]} 52. Ke1 {[%clk 0:00:12]} 52... Kxe3
{[%clk 0:00:07.2]} 0-1

[Event "Late-Titled-Tuesday-Blitz-August-29-2023"]
[Site "Chess.com"]
[Date "2023.08.29"]
[Round "3"]
[White "Cluke86"]
[Black "DishonorOnYourCow"]
[Result "1-0"]
[WhiteElo "2284"]
[BlackElo "2508"]
[TimeControl "180+1"]
[EndTime "14:28:36 PDT"]
[Termination "Cluke86 won by resignation"]

1. e4 {[%clk 0:03:00.9]} 1... c5 {[%clk 0:02:59.8]} 2. Nc3 {[%clk 0:03:00.1]}
2... d6 {[%clk 0:02:59.8]} 3. f4 {[%clk 0:03:00]} 3... g6 {[%clk 0:02:59.2]} 4.
Nf3 {[%clk 0:03:00.4]} 4... Bg7 {[%clk 0:02:59.3]} 5. Bc4 {[%clk 0:03:00.8]}
5... e6 {[%clk 0:02:59.1]} 6. d3 {[%clk 0:03:00.4]} 6... Nc6 {[%clk 0:02:58.9]}
7. O-O {[%clk 0:03:00.4]} 7... Nge7 {[%clk 0:02:59]} 8. Qe1 {[%clk 0:02:59.7]}
8... O-O {[%clk 0:02:57.9]} 9. f5 {[%clk 0:02:56.5]} 9... gxf5 {[%clk
0:02:53.4]} 10. Bg5 {[%clk 0:02:53]} 10... f6 {[%clk 0:02:28.1]} 11. Bd2 {[%clk
0:02:47.5]} 11... fxe4 {[%clk 0:02:24.3]} 12. dxe4 {[%clk 0:02:46.6]} 12... d5
{[%clk 0:02:24.4]} 13. exd5 {[%clk 0:02:38.7]} 13... exd5 {[%clk 0:02:25.3]} 14.
Bd3 {[%clk 0:02:28.5]} 14... c4 {[%clk 0:02:24]} 15. Be2 {[%clk 0:02:27.4]}
15... Nf5 {[%clk 0:02:19.5]} 16. Nh4 {[%clk 0:02:23.3]} 16... Nfd4 {[%clk
0:02:11.3]} 17. Qg3 {[%clk 0:02:08.5]} 17... Nxe2+ {[%clk 0:02:06.9]} 18. Nxe2
{[%clk 0:02:09.4]} 18... f5 {[%clk 0:02:04.9]} 19. c3 {[%clk 0:02:05.7]} 19...
d4 {[%clk 0:01:58.7]} 20. Bh6 {[%clk 0:01:57.2]} 20... Qf6 {[%clk 0:01:42.8]}
21. Bg5 {[%clk 0:01:57.1]} 21... Qf7 {[%clk 0:01:38.8]} 22. Nf4 {[%clk
0:01:42.3]} 22... dxc3 {[%clk 0:01:33.4]} 23. bxc3 {[%clk 0:01:41.6]} 23... Ne5
{[%clk 0:01:30.9]} 24. Rae1 {[%clk 0:01:35.8]} 24... Kh8 {[%clk 0:01:15.8]} 25.
Nf3 {[%clk 0:01:21.9]} 25... Ng6 {[%clk 0:01:00.1]} 26. Nd4 {[%clk 0:01:04.8]}
26... Bd7 {[%clk 0:00:57.6]} 27. Nfe6 {[%clk 0:01:02.8]} 27... Bxe6 {[%clk
0:00:57]} 28. Nxe6 {[%clk 0:01:02.7]} 28... Rfe8 {[%clk 0:00:52.4]} 29. Nxg7
{[%clk 0:01:00.5]} 29... Kxg7 {[%clk 0:00:51.7]} 30. Rxe8 {[%clk 0:00:45.1]}
30... Rxe8 {[%clk 0:00:52.6]} 31. Qf3 {[%clk 0:00:44.9]} 31... Re5 {[%clk
0:00:42.3]} 32. Be3 {[%clk 0:00:40.5]} 32... Re4 {[%clk 0:00:12.8]} 33. Bd4+
{[%clk 0:00:38.1]} 33... Kg8 {[%clk 0:00:12.7]} 34. Qxf5 {[%clk 0:00:37.6]}
34... Qxf5 {[%clk 0:00:12.6]} 35. Rxf5 {[%clk 0:00:38.3]} 35... Re1+ {[%clk
0:00:09.3]} 36. Kf2 {[%clk 0:00:37.8]} 36... Re7 {[%clk 0:00:09.4]} 37. Bxa7
{[%clk 0:00:36.4]} 37... Ne5 {[%clk 0:00:08.3]} 38. Bd4 {[%clk 0:00:32.2]} 38...
Nd3+ {[%clk 0:00:08.8]} 39. Kf3 {[%clk 0:00:31]} 39... Ne1+ {[%clk 0:00:08.2]}
40. Kg3 {[%clk 0:00:30.2]} 40... Nc2 {[%clk 0:00:06.9]} 41. Bc5 {[%clk
0:00:28.6]} 41... Rg7+ {[%clk 0:00:06.4]} 42. Kf4 {[%clk 0:00:27.9]} 42... Rc7
{[%clk 0:00:06]} 43. Rg5+ {[%clk 0:00:22.2]} 43... Kf7 {[%clk 0:00:06.1]} 44.
Rf5+ {[%clk 0:00:21.7]} 44... Ke6 {[%clk 0:00:05.4]} 45. Bf2 {[%clk 0:00:21.4]}
45... Rg7 {[%clk 0:00:02.8]} 46. g4 {[%clk 0:00:20.5]} 46... Na3 {[%clk
0:00:01.8]} 47. Re5+ {[%clk 0:00:19.1]} 47... Kd6 {[%clk 0:00:02]} 48. Bc5+
{[%clk 0:00:18.2]} 48... Kc6 {[%clk 0:00:02.5]} 49. Bxa3 {[%clk 0:00:18.2]}
49... Rf7+ {[%clk 0:00:02.9]} 50. Rf5 {[%clk 0:00:18.1]} 50... Rd7 {[%clk
0:00:03.5]} 51. g5 {[%clk 0:00:16.7]} 51... Rd1 {[%clk 0:00:03.7]} 52. Bb4
{[%clk 0:00:16.4]} 52... Rf1+ {[%clk 0:00:04]} 53. Ke5 {[%clk 0:00:16.8]} 53...
Rh1 {[%clk 0:00:04.7]} 54. Rf2 {[%clk 0:00:15.6]} 54... Re1+ {[%clk 0:00:04.9]}
55. Kf6 {[%clk 0:00:15.9]} 55... Kd5 {[%clk 0:00:05.3]} 56. h4 {[%clk
0:00:14.6]} 56... Re6+ {[%clk 0:00:05.4]} 57. Kf7 {[%clk 0:00:14.3]} 57... Re4
{[%clk 0:00:05.4]} 58. h5 {[%clk 0:00:14.3]} 58... Rg4 {[%clk 0:00:05.7]} 59. g6
{[%clk 0:00:14.1]} 59... hxg6 {[%clk 0:00:06.3]} 60. hxg6 {[%clk 0:00:15]} 1-0

[Event "Late-Titled-Tuesday-Blitz-August-29-2023"]
[Site "Chess.com"]
[Date "2023.08.29"]
[Round "3"]
[White "Petrakejzar96"]
[Black "wgraif"]
[Result "1/2-1/2"]
[WhiteElo "2332"]
[BlackElo "2539"]
[TimeControl "180+1"]
[EndTime "14:28:38 PDT"]
[Termination "Game drawn - insufficient material"]

1. e4 {[%clk 0:03:00.9]} 1... e5 {[%clk 0:02:59.9]} 2. Nf3 {[%clk 0:03:01.2]}
2... Bc5 {[%clk 0:03:00.5]} 3. Bc4 {[%clk 0:03:00.2]} 3... Nf6 {[%clk
0:03:00.1]} 4. d3 {[%clk 0:02:59.9]} 4... Nc6 {[%clk 0:02:59.9]} 5. c3 {[%clk
0:02:59]} 5... d6 {[%clk 0:02:57.8]} 6. Be3 {[%clk 0:02:58.9]} 6... Bxe3 {[%clk
0:02:51.1]} 7. fxe3 {[%clk 0:02:59.3]} 7... O-O {[%clk 0:02:49.8]} 8. Nbd2
{[%clk 0:02:59.1]} 8... d5 {[%clk 0:02:34.6]} 9. Bb3 {[%clk 0:02:55.4]} 9...
dxe4 {[%clk 0:02:20.8]} 10. dxe4 {[%clk 0:02:55.9]} 10... b6 {[%clk 0:01:41.9]}
11. Qe2 {[%clk 0:02:53.9]} 11... Bb7 {[%clk 0:01:35.1]} 12. Rd1 {[%clk
0:02:53.1]} 12... Qe7 {[%clk 0:01:34.3]} 13. O-O {[%clk 0:02:52.7]} 13... Na5
{[%clk 0:01:30.8]} 14. Bc2 {[%clk 0:02:50.2]} 14... Rad8 {[%clk 0:01:21.3]} 15.
Qf2 {[%clk 0:02:46]} 15... Ne8 {[%clk 0:01:14.5]} 16. b4 {[%clk 0:02:45.1]}
16... Nc6 {[%clk 0:01:14.3]} 17. Bb3 {[%clk 0:02:36.5]} 17... Kh8 {[%clk
0:01:11]} 18. Qg3 {[%clk 0:02:35.4]} 18... Rd3 {[%clk 0:01:08.3]} 19. Nh4 {[%clk
0:02:26.1]} 19... Nd6 {[%clk 0:01:04.4]} 20. Nc4 {[%clk 0:02:04.7]} 20... Nxe4
{[%clk 0:00:58.8]} 21. Qg4 {[%clk 0:01:57]} 21... Rxd1 {[%clk 0:00:55.5]} 22.
Rxd1 {[%clk 0:01:51]} 22... Nxc3 {[%clk 0:00:32.9]} 23. Rd7 {[%clk 0:01:50.7]}
23... Bc8 {[%clk 0:00:28.5]} 24. Rxe7 {[%clk 0:01:46.2]} 24... Bxg4 {[%clk
0:00:28.4]} 25. Rxc7 {[%clk 0:01:46.5]} 25... Nxb4 {[%clk 0:00:28.7]} 26. Nxe5
{[%clk 0:01:45.7]} 26... Ncd5 {[%clk 0:00:22]} 27. Rxf7 {[%clk 0:01:41.9]} 27...
Rxf7 {[%clk 0:00:20.6]} 28. Nxf7+ {[%clk 0:01:42.4]} 28... Kg8 {[%clk
0:00:21.5]} 29. Ne5 {[%clk 0:01:42.8]} 29... Be6 {[%clk 0:00:21]} 30. a3 {[%clk
0:01:31.6]} 30... Na6 {[%clk 0:00:18.7]} 31. Nc6 {[%clk 0:01:27]} 31... Ndc7
{[%clk 0:00:14.6]} 32. Bxe6+ {[%clk 0:01:25]} 32... Nxe6 {[%clk 0:00:15]} 33.
Nxa7 {[%clk 0:01:25.6]} 33... Nac7 {[%clk 0:00:13.8]} 34. Nc6 {[%clk 0:01:24.9]}
34... Nb5 {[%clk 0:00:13.3]} 35. Ne7+ {[%clk 0:01:24.3]} 35... Kf7 {[%clk
0:00:13.1]} 36. Nd5 {[%clk 0:01:25.2]} 36... Nxa3 {[%clk 0:00:11.7]} 37. Nxb6
{[%clk 0:01:25.2]} 37... Nc2 {[%clk 0:00:12.5]} 38. Nc4 {[%clk 0:01:25.1]} 38...
g5 {[%clk 0:00:11.5]} 39. Nf3 {[%clk 0:01:24.9]} 39... Kf6 {[%clk 0:00:12.1]}
40. Kf2 {[%clk 0:01:24.4]} 40... h5 {[%clk 0:00:11.4]} 41. Nfd2 {[%clk
0:01:24.7]} 41... Kf5 {[%clk 0:00:10.2]} 42. e4+ {[%clk 0:01:24.2]} 42... Kf6
{[%clk 0:00:10.1]} 43. g3 {[%clk 0:01:24.4]} 43... Ncd4 {[%clk 0:00:10]} 44. Ke3
{[%clk 0:01:24.4]} 44... Nc6 {[%clk 0:00:09.6]} 45. Kd3 {[%clk 0:01:25.3]} 45...
Nc5+ {[%clk 0:00:09.2]} 46. Ke3 {[%clk 0:01:24.6]} 46... Ne6 {[%clk 0:00:09.1]}
47. Nb6 {[%clk 0:01:22.2]} 47... Ne5 {[%clk 0:00:08.1]} 48. Nd5+ {[%clk
0:01:22]} 48... Kg6 {[%clk 0:00:08.8]} 49. Nf3 {[%clk 0:01:22.2]} 49... Ng4+
{[%clk 0:00:07.8]} 50. Ke2 {[%clk 0:01:16.9]} 50... Nc5 {[%clk 0:00:08]} 51. h3
{[%clk 0:01:13.6]} 51... Nxe4 {[%clk 0:00:06.2]} 52. hxg4 {[%clk 0:00:35.9]}
52... hxg4 {[%clk 0:00:06.5]} 53. Ne5+ {[%clk 0:00:25.7]} 53... Kf5 {[%clk
0:00:06.5]} 54. Ne3+ {[%clk 0:00:19.3]} 54... Kxe5 {[%clk 0:00:06]} 55. Nxg4+
{[%clk 0:00:19.8]} 55... Kf5 {[%clk 0:00:06.2]} 56. Ne3+ {[%clk 0:00:20.1]}
56... Ke5 {[%clk 0:00:06.3]} 57. Kf3 {[%clk 0:00:21]} 57... Nxg3 {[%clk
0:00:06]} 58. Kg4 {[%clk 0:00:21.9]} 58... Ke4 {[%clk 0:00:05.4]} 59. Kxg5
{[%clk 0:00:22.8]} 1/2-1/2